Cogmind - Beta 16 @@@ ROGUE MODE // 2025.12.05 @ 19:49:25 Player: winnking222 Result: Destroyed by as-72606 with Assembled Blade Performance ------------- Evolutions (0) 0 Regions Visited (2) 400 Robots Destroyed (20) 100 Value Destroyed (402) 402 Prototype IDs (0) 0 Alien Tech Used (0) 0 Bonus (0) 0 TOTAL SCORE: 902 Bonus ------- None Cogmind --------- Core Integrity 0/250 Matter 280/300 Energy 98/100 System Corruption 6% Temperature Cool (14) Movement Rolling (130) Ox2 Location -10/Mines Parts ------- > --- POWER (1) -------- (None) > --- PROPULSION (2) --- Light Treads Compact Wheel > --- UTILITY (2) ------ High-capacity Storage Unit > --- WEAPON (2) ------- Assault Rifle Light Assault Rifle > --- INVENTORY (20) --- Aluminum Leg Flexi-carbon Leg Wheel Flight Unit Flight Unit Flight Unit Flight Unit Improved Heat Sink Small Storage Unit Seismic Detector Light Armor Plating Small Laser Light Assault Rifle Grenade Launcher Peak State ------------ > --- POWER ------------ Ion Engine > --- PROPULSION ------- Light Treads Wheel > --- UTILITY ---------- High-capacity Storage Unit Structural Scanner > --- WEAPON ----------- Assault Rifle Light Assault Rifle > --- INVENTORY -------- Light Treads Aluminum Leg Flexi-carbon Leg Wheel Compact Wheel Flight Unit Flight Unit Flight Unit Flight Unit Improved Heat Sink Small Storage Unit Seismic Detector Light Armor Plating Small Laser Light Assault Rifle Grenade Launcher [Rating: 9] Favorites ----------- Power Ion Engine Engine Ion Engine Propulsion Light Treads Treads Light Treads Wheel Wheel Utility High-capacity Storage Unit Device Structural Scanner Storage High-capacity Storage Unit Weapon Light Assault Rifle Ballistic Gun Light Assault Rifle Launcher Grenade Launcher Slashing Weapon Mining Claw Build | -11 -10 -10 ------- Run | Yrd Mat Min Slots Evolved . | . . . Power . | . . . Propulsion . | . . . Utility . | . . . Weapon . | . . . Parts Attached 17 | 7 6 4 Power 2 | 1 . 1 Engine 2 | 1 . 1 Core . | . . . Reactor . | . . . Propulsion 5 | 2 1 2 Treads 3 | 2 . 1 Leg . | . . . Wheel 2 | . 1 1 Hover . | . . . Flight . | . . . Utility 4 | 2 2 . Device 2 | 1 1 . Storage 2 | 1 1 . Processor . | . . . Hackware . | . . . Protection . | . . . Artifact . | . . . Weapon 6 | 2 3 1 Energy Gun . | . . . Energy Cannon . | . . . Ballistic Gun 4 | 2 2 . Ballistic Cannon . | . . . Launcher 1 | . . 1 Special Weapon . | . . . Impact Weapon . | . . . Slashing Weapon 1 | . 1 . Piercing Weapon . | . . . Special Melee Weapon . | . . . Unidentified Prototypes . | . . . Parts Lost 9 | . 2 7 Power 2 | . . 2 Propulsion 3 | . . 3 Utility 2 | . 1 1 Weapon 2 | . 1 1 Highest Loss Streak 3 | . 1 3 To Critical Strikes . | . . . Average Backups 13 | 6 12 16 Power . | 1 1 . Propulsion 7 | 3 6 8 Utility 2 | . 2 4 Weapon 2 | . 2 3 Tool/Special . | . . . Unused Backups 14 | . 2 12 Power . | . . . Propulsion 8 | . 1 7 Utility 3 | . . 3 Weapon 3 | . 1 2 Tool/Special . | . . . Average Slot Usage (%) 97 | . 99 92 Engine 13 | . 14 10 Treads 23 | . 27 13 Wheel 4 | . . 13 Device 12 | . 13 11 Storage 14 | . 14 14 Ballistic Gun 27 | . 27 25 Peak Build Rating 9 | 7 8 9 Average Rating 7 | 5 7 7 On Entrance 5 | . 7 8 Avg Prop Armor Cover (%) 11 | . 12 11 Naked Turns . | . . . Heaviest Build 50 | 14 50 50 Greatest Support 40 | 40 40 20 Greatest Overweight (x) 4 | 2 4 4 Average Overweight (x) 1 | . . 3 Largest Inventory Capacity 20 | 8 20 20 Average Capacity 18 | 7 18 20 Most Carried 17 | 8 17 17 Average Carried 13 | 6 12 16 Final Capacity 20 | 8 20 20 Final Carried 17 | 7 17 14 Class Distribution -------------------- 100% | Mutant Dominant Class ---------------- Mutant | -10/Materials Mutant | -10/Mines Resources | -11 -10 -10 ----------- Run | Yrd Mat Min Matter Collected 898 | 332 278 288 Remotely . | . . . Salvage Created 805 | 104 545 156 Parts 52 | 12 40 . Haulers Intercepted 1 | . 1 . Recyclers Shooed 4 | . 4 . Parts Field Recycled . | . . . Retrieved Matter . | . . . Parts Self-Destructed . | . . . Prevented . | . . . Parts Restored . | . . . Kills | -11 -10 -10 ------- Run | Yrd Mat Min Combat Hostiles Destroyed 25 | . 11 14 Guns 21 | . 11 10 AOE 4 | . . 4 Classes Destroyed 7 | 2 4 1 Tunneler 4 | 3 1 . Hauler 1 | . 1 . Recycler 2 | 1 1 . Watcher 2 | . 2 . Swarmer 3 | . 3 . Grunt 8 | . 8 . Assembled 14 | . . 14 Best Kill Streak 5 | 2 5 4 Combat Bots Only 4 | . 4 4 Max Kills in Single Turn 2 | 1 1 2 Gunslinging . | . . . Exploded 2 | . . 2 Melee . | . . . Uniques/NPCs Destroyed . | . . . Combat | -11 -10 -10 -------- Run | Yrd Mat Min Hostile Shots Fired 131 | . 65 66 Missed 38 | . 12 26 Hits 93 | . 53 40 Melee 8 | . . 8 Projectile 85 | . 53 32 Damage Taken 1314 | . 595 719 Core 256 | . 62 194 Absorbed by Shields . | . . . Core Remaining (%) 100 | 100 . . Volleys Fired 138 | 17 64 57 Largest 2 | 2 2 2 Hottest 40 | 40 40 40 Shots Fired 254 | 34 128 92 Gun 246 | 34 128 84 Cannon . | . . . Launcher 8 | . . 8 Special . | . . . Kinetic 246 | 34 128 84 Thermal . | . . . Explosive 8 | . . 8 Electromagnetic . | . . . Robot Hit Streak 19 | 11 16 19 Robot Miss Streak 6 | 5 6 4 Penetration Max . | . . . Secondary Targets 5 | . 4 1 Max Gunslinging Chain 1 | . 1 1 Shots Hit Robots 159 | 24 83 52 Core Hits 74 | 6 38 30 Critical Kills . | . . . Critical Parts Destroyed . | . . . Critical Strikes . | . . . Melee Attacks 2 | . 2 . Impact . | . . . Slashing 2 | . 2 . Piercing . | . . . Sneak Attacks . | . . . Combat Hostiles . | . . . Follow-up Attacks . | . . . Damage Inflicted 1909 | 245 901 763 Guns 1653 | 245 892 516 Cannons . | . . . Explosions 247 | . . 247 Melee . | . . . Ramming 9 | . 9 . Kinetic 1653 | 245 892 516 Thermal . | . . . Explosive 247 | . . 247 Electromagnetic . | . . . Impact . | . . . Slashing . | . . . Piercing . | . . . Highest Corruption 6 | . . 6 Average Corruption 5 | . . 5 Corruption Purged . | . . . Corruption Blocked . | . . . Effects 6 | . . 6 Message Errors 3 | . . 3 Matter Fused 1 | . . 1 Heat Flow Errors 1 | . . 1 Weapon Failures 1 | . . 1 Overload Shots . | . . . Overflow Damage 9 | . . 9 Projectiles . | . . . Explosions 9 | . . 9 Melee . | . . . Knockbacks . | . . . Impact . | . . . Kinetic . | . . . Secondary . | . . . Self-Inflicted Damage 40 | . . 40 Shots 1 | . . 1 Rammed 1 | . 1 . Targets Rammed 1 | . 1 . Kicked . | . . . Crushed . | . . . Highest Temperature 119 | . 29 119 Average Temperature 23 | . 12 58 Received Heat Transfer 302 | . 282 20 Siege Activations . | . . . Martial Activations . | . . . Shielding Activations . | . . . Robots Disrupted . | . . . Combat Hostiles . | . . . Robots Corrupted . | . . . Combat Hostiles . | . . . Parts Fried . | . . . Impact Corruptions . | . . . Robots Melted . | . . . Combat Hostiles . | . . . Parts Melted . | . . . Heat Transferred . | . . . Parts Sabotaged . | . . . Parts Stolen . | . . . Parts Stripped . | . . . Power Chain Reactions . | . . . Alert | -11 -10 -10 ------- Run | Yrd Mat Min Maximum Alert Level . | . . . Low Security (%) 100 | 100 100 100 Level 1 . | . . . Level 2 . | . . . Level 3 . | . . . Level 4 . | . . . Level 5 . | . . . High Security . | . . . Max Security . | . . . Peak Influence 117 | 10 117 20 Initial . | . . . Average 15 | . 23 . Influence Increases 373 | 20 314 39 Destroy 0b10 Robot/C 220 | . 220 . Destroy 0b10 Robot/NC 45 | 20 25 . Destroy Leader 46 | . 46 . Successful Hack 22 | . 22 . Destroy Structure 40 | . 1 39 Influence Decreases 373 | 20 314 39 Time Decay 343 | 20 304 19 Lost Part 30 | . 10 20 Squads Dispatched 2 | . 2 . Investigation . | . . . Extermination . | . . . Reinforcement 2 | . 2 . Assault . | . . . Garrison . | . . . Intercept . | . . . Searches Triggered . | . . . Construction Impeded . | . . . Haulers Reinforced . | . . . Active Scanning Responses . | . . . Cargo Convoy Interrupts . | . . . Stealth | -11 -10 -10 --------- Run | Yrd Mat Min Distress Signals 5 | . 4 1 Communications Jammed . | . . . Distress Signals . | . . . Times Spotted 45 | . 30 15 Peak Tracking Total 5 | . 5 4 Tactical Retreats . | . . . Traps | -11 -10 -10 ------- Run | Yrd Mat Min Traps Triggered 1 | . 1 . Indirectly . | . . . Trap Hack Attempts . | . . . Triggered . | . . . Disarmed . | . . . Reprogrammed . | . . . Reused . | . . . Traps Extracted . | . . . Installed . | . . . Triggered . | . . . Machines | -11 -10 -10 ---------- Run | Yrd Mat Min Machines Disabled . | . . . Max in Single Turn . | . . . Machines Repaired . | . . . Machines Dismantled . | . . . Machines Sabotaged . | . . . Overloaded Fab Kills . | . . . Hacking | -11 -10 -10 --------- Run | Yrd Mat Min Machines Accessed 5 | . 5 . Terminals 5 | . 5 . Fabricators . | . . . Repair Stations . | . . . Recycling Units . | . . . Scanalyzers . | . . . Garrison Access . | . . . Total Hacks 13 | . 13 . Successful 11 | . 11 . Failed 2 | . 2 . Catastrophic . | . . . Database Lockouts . | . . . Manual 12 | . 12 . Terminals 13 | . 13 . Fabricators . | . . . Repair Stations . | . . . Recycling Units . | . . . Scanalyzers . | . . . Garrison Access . | . . . Terminal Hacks . | . . . Fabricator Hacks . | . . . Repair Station Hacks . | . . . Recycling Unit Hacks . | . . . Scanalyzer . | . . . Garrison Access Hacks . | . . . Unauthorized Hacks 11 | . 11 . Terminals 11 | . 11 . Assimilate 2 | . 2 . Botnet 4 | . 4 . Skim 5 | . 5 . Fabricators . | . . . Repair Stations . | . . . Recycling Units . | . . . Scanalyzers . | . . . Garrison Access . | . . . Data Cores Recovered . | . . . Used . | . . . Hacking Detections 3 | . 3 . Full Trace Events . | . . . Feedback Events . | . . . Feedback Blocked . | . . . Robot Schematics Acquired . | . . . Robots Built . | . . . Authchips . | . . . Time . | . . . Total Robot Build Rating . | . . . Part Schematics Acquired . | . . . Parts Built . | . . . Authchips . | . . . Time . | . . . Total Part Build Rating . | . . . Part Studies Acquired . | . . . Parts Repaired . | . . . Time . | . . . Parts Recycled . | . . . Recycled Matter . | . . . Retrieved Matter . | . . . Retrieved Components . | . . . Parts Scanalyzed . | . . . Part Schematics Acquired . | . . . Parts Damaged . | . . . Bothacking | -11 -10 -10 ------------ Run | Yrd Mat Min Used RIF Installer . | . . . Robots Hacked . | . . . Non-combat . | . . . Combat . | . . . Robot Hacks Applied . | . . . Relay Couplers Released . | . . . Fabnet Peak Effective % . | . . . Robots Rewired . | . . . Allies Hacked . | . . . Hacks Repelled . | . . . Allies | -11 -10 -10 -------- Run | Yrd Mat Min Total Allies . | . . . Largest Group . | . . . Highest-Rated Group . | . . . Highest-Rated Ally . | . . . Total Orders . | . . . Ally Attacks . | . . . Total Damage . | . . . Kills . | . . . Allies Corrupted . | . . . Allies Melted . | . . . Intel | -11 -10 -10 ------- Run | Yrd Mat Min Active Infowar (turns) 2414 | 103 1686 625 Structural 1915 | . 1290 625 Seismic 499 | 103 396 . Robot Analysis Total . | . . . Derelict Logs Recovered 1 | . . 1 Drone Launches . | . . . Drone Recoveries . | . . . Exploration | -11 -10 -10 ------------- Run | Yrd Mat Min Turns Passed 2738 | 202 1766 770 Spaces Moved 924 | 94 584 246 Core 25 | 25 . . Treads 641 | 69 555 17 Legs . | . . . Wheels 258 | . 29 229 Hover . | . . . Flight . | . . . Fastest Speed 50 | 50 140 130 Average Speed 192 | 142 219 149 Slowest Speed 320 | 160 240 320 Overloaded Moves . | . . . Propulsion Burnouts . | . . . Robots Hopped . | . . . Potential Cave-ins . | . . . Cave-ins Triggered . | . . . Exploration Rate (%) 52 | 6 91 60 Regions Visited 2 Branch Regions 1 Pre-discovered Areas 3 | . 2 1 Known Exits Taken 1 | . 1 . Unknown Exits Taken 1 | 1 . . Scrap Searched 1 | . . 1 Spaces Dug . | . . . Terrain Destroyed 49 | . . 49 Melee . | . . . Projectile . | . . . AOE 49 | . . 49 Terrain Rammed . | . . . Walls Destroyed . | . . . Machines Disabled . | . . . Actions | -11 -10 -10 --------- Run | Yrd Mat Min Total 1646 | 130 951 565 Wait 529 | 2 274 253 Move 922 | 93 583 246 Hop . | . . . Pick Up 30 | 11 17 2 Fast Attach 3 | 3 . . Attach 13 | 4 4 5 Detach . | . . . Swap 4 | . 2 2 Drop 4 | . 4 . Fire 138 | 17 64 57 Melee 2 | . 2 . Ram . | . . . Kick . | . . . Crush 1 | . 1 . Escape Stasis . | . . . Rewire . | . . . Trap . | . . . Miscellaneous . | . . . Route ------- -11/Scrapyard -10/Materials (discovered 4 exits: *Mat x2 / *Min / Sub) -10/Mines (discovered 2 exits: *Mat x2) History --------- Turn | Location | Event 28 | -11/Scrapyard | Discovered new exit (range 14) 203 | -11/Scrapyard | Entered Materials 318 | -10/Materials | Build established: Mutant 746 | -10/Materials | Discovered new exit (range 11) 1381 | -10/Materials | Learned Storage stockpile data 1394 | -10/Materials | Discovered new exit (range 9) 1437 | -10/Materials | Identified exit to Mines 1555 | -10/Materials | Learned location of 1 exit from Storage 1575 | -10/Materials | Learned 2 Mines zone layouts 1598 | -10/Materials | Identified exit to Subcaves 1676 | -10/Materials | Learned Storage stockpile data 1969 | -10/Materials | Entered Mines 1970 | -10/Mines | Identified exit to Materials 1982 | -10/Mines | Assembled infested the area 1987 | -10/Mines | Assisted by a Guerilla fighting off Assembled 1990 | -10/Mines | Met a Derelict bent on vengeance 2316 | -10/Mines | Learned location of Zion (-6) 2602 | -10/Mines | Core integrity fell below 50% 2634 | -10/Mines | Lost 3 parts (1n1u1w) 2737 | -10/Mines | Core integrity fell below 20% 2739 | -10/Mines | Destroyed by as-72606 with Assembled Blade Last Messages --------------- 02601_ NK=33WPZ3L0YOKAW/FA>JTF4W1|B3A 02603_ Lgt. Assault Rifle destroyed. 02605_ Destroyed Asb. Hover Unit. 02608_ as-01536 destroyed. 02608_ Switching to secondary target: as-19253. 02613_ as-19253 destroyed. 02617_ Acquired 20 matter. 02618_ Acquired 15 matter. 02620_ System corrupted: Matter fused (-5). 02627_ Acquired 17 matter. 02640_ Destroyed Asb. Hover Unit. 02642_ Ion Engine destroyed. 02642_ as-82630 destroyed. 02676_ MRWMWP8ZYBQO|>YO3D 02678_ as-43668 destroyed. 02692_ as-20563 destroyed. 02697_ Acquired 20 matter. 02718_ Acquired 14 matter. 02722_ Acquired 10 matter. 02729_ System corrupted: Heat flow error (+144). Map ----- +----------------------------------------------------+ | ##?????????## #???? | | ##?????????## ##???? | | #????????## ##????? | | #???????## ## #?????? | | #???????# #### #?????? | | #???????# ##??# ##????? | | ##??????## ##???# #????? | | ##???????#### #????# #????? | | ###????????# #????# ##????? | | ##?####### #???## ##????? | | #?# #??## ###??? | | #?# ##### #??# *% ##?? | | ##?# #???# #??# #?? | | #### #???####??# % #?? | | ## #?????????## #?? | | ## ###??????????## #?? | | # #?????????????# ##?? | | ## #####?????????????# #??? | | ?####?????????????????# ##??? | | #?????????????####????##! = #???? | | ???????????????????????## ##???? | | ????????????????????????# ##????? | | ????????????????????????#%#?????? | | ????????????????????????#%#?????? | | ????????????# #####%#?????? | | ????????????#=* ! a@#?????? | | ??????????!*!*!= =%* !%= $#?????? | | ??????????%%!%=%% !########?????? | | ???????????##%!?????????????????? | | ????????????????????????????????? | | ????????????????????????????????? | | ????????????????????????????????? | | ????????????????????????????????? | | ????????????????????????????????? | | ????????????????????????????????? | | ????????????????????????????????? | | ????????????????????????????????? | | ????????????????????????????????? | | ????????????????????????????????? | | ????????????????????????????????? | | ????????????????????????????????? | | ????????????????????????????????? | | ????????????????????????????????? | | ????????????????????????????????? | | ????????????????????????????????? | | | | | | | | | | | +----------------------------------------------------+ Best States ------------- Heat Dissipation 25 Energy Generation 10 Energy Capacity 250 Matter Stores 300 Matter Capacity 300 Sight Range 16 Terrain Scan Density 10 Evasion (%) 50 Recoil Reduction 2 Item Schematics ----------------- None Robot Schematics ------------------ None Fabricated ------------ Nothing Repaired ---------- Nothing Studied --------- None Alien Tech Used ----------------- None Achievements -------------- None Challenges ------------ None Game ------ Seed ArcsightBraceDriveblaster Manual? 0 Play Time 00:16:27 Cumulative 199.1 hours Start 2025.12.05 @ 19:34:52 End 2025.12.05 @ 19:49:25 Sessions 1 Manual Loads 0 Difficulty Rogue Special Mode None Game No. 279 Rogue 279 Adventurer 0 Explorer 0 Win Type - Total 3 Types 2/0/0/1/0/0/0/0/0/0 Lore% 73 Gallery% 72 Achievement% 40 Wizard Run 0 Options --------- Layout 0 ASCII 0 Keyboard 0 Movement Mouse Keybinds 0 Fullscreen 1 Font 16/SmallcapsGlow Map View 75x55 Zoom Use 0% Tactical HUD 1 Map Filters NONE Filters NONE Steam 1 RUN: 49741170-81e2-4d52-ba1b-084dc42e8b31